[Event "48th Rilton Cup 2018"]
[Site "Stockholm"]
[Date "2019.01.02"]
[Round "6"]
[White "Lalith Babu M R"]
[Black "Gajewski, Grzegorz"]
[Result "0-1"]
[ECO "E10"]
[WhiteElo "2529"]
[BlackElo "2598"]
[Annotator "ChessBase"]
[PlyCount "62"]
[EventDate "2018.12.27"]
[EventType "swiss"]
[EventCountry "SWE"]
[SourceTitle "playchess.com"]
[Source "ChessBase"]
[SourceQuality "1"]
[TimeControl "40/5400+30:1800+30"]

1. d4 {[%emt 0:00:00]} Nf6 {[%emt 0:00:00]} 2. c4 {[%emt 0:00:00]} e6 {[%emt 0:00:00]} 3. Nf3 {[%emt 0:00:14]} d5 {[%emt 0:00:00]} 4. g3 {[%emt 0:00:06]} Bb4+ {[%emt 0:00:00]} 5. Bd2 {[%emt 0:00:06]} Be7 {[%emt 0:00:03]} 6. Bg2 {[%emt 0:00:07]} O-O {[%emt 0:00:06]} 7. O-O {[%emt 0:00:07]} Nbd7 {[%emt 0:00:03]} 8. Qc2 {[%emt 0:00:11]} c6 {[%emt 0:00:14]} 9. Bf4 {[%emt 0:00:09]} b6 {[%emt 0:00:16]} 10. Rd1 {[%emt 0:00:56]} Bb7 {[%emt 0:01:06]} 11. Ne5 {[%emt 0:01:35]} Nh5 {[%emt 0:00:10]} 12. Bd2 {[%emt 0:04:21]} Nhf6 {[%emt 0:00:14]} 13. cxd5 {[%emt 0:00:59]} cxd5 {[%emt 0:00:03]} 14. Nc6 {[%emt 0:00:06]} Bxc6 {[%emt 0:00:06]} 15. Qxc6 {[%emt 0:00:04]} Rc8 {[%emt 0:00:08]} 16. Qb5 {[%emt 0:00:07]} Ne8 {[%emt 0:00:34]} 17. Qd3 {[%emt 0:01:57]} Nd6 {[%emt 0:00:09]} 18. Nc3 {[%emt 0:00:13]} Nf6 {[%emt 0:00:18]} 19. b3 {[%emt 0:00:48]} Qd7 {[%emt 0:01:12]} 20. f3 {[%emt 0:09:27]} Nf5 {[%emt 0:02:19]} 21. e3 {[%emt 0:02:16]} h5 {[%emt 0:03:09]} 22. Ne2 {[%emt 0:13:25]} Rfd8 {[%emt 0:00:20]} 23. Rac1 {[%emt 0:00:43]} Rxc1 {[%emt 0:11:37]} 24. Rxc1 {[%emt 0:00:12]} g5 {[%emt 0:01:54]} 25. e4 {[%emt 0:23:05]} dxe4 {[%emt 0:00:28]} 26. fxe4 {[%emt 0:00:04]} Nxd4 {[%emt 0:00:27]} 27. Qxd4 {[%emt 0:03:58]} Qb5 {[%emt 0:08:33]} 28. Qe3 {[%emt 0:13:55]} Ng4 {[%emt 0:02:13]} 29. Qf3 {[%emt 0:00:44]} Bc5+ {[%emt 0:03:40]} 30. Kh1 {[%emt 0:00:27]} Nf2+ {[%emt 0:02:39]} 31. Kg1 {[%emt 0:00:05]} Rxd2 {[%emt 0:00:37]} 0-1

[Event "48th Rilton Cup 2018"]
[Site "Stockholm"]
[Date "2019.01.02"]
[Round "6"]
[White "Gholami, Aryan"]
[Black "Moksh Amit Doshi"]
[Result "1-0"]
[ECO "B50"]
[WhiteElo "2488"]
[BlackElo "2242"]
[Annotator "ChessBase"]
[PlyCount "93"]
[EventDate "2018.12.27"]
[EventType "swiss"]
[EventCountry "SWE"]
[SourceTitle "playchess.com"]
[Source "ChessBase"]
[SourceQuality "1"]
[TimeControl "40/5400+30:1800+30"]

1. Nf3 {[%emt 0:00:00]} c5 {[%emt 0:01:29]} 2. e4 {[%emt 0:00:00]} d6 {[%emt 0:00:07]} 3. c3 {[%emt 0:00:00]} Nf6 {[%emt 0:00:18]} 4. Be2 {[%emt 0:00:01]} Bd7 {[%emt 0:00:06]} 5. d3 {[%emt 0:00:07]} g6 {[%emt 0:00:20]} 6. O-O {[%emt 0:00:09]} Bg7 {[%emt 0:00:08]} 7. Re1 {[%emt 0:00:14]} O-O {[%emt 0:00:46]} 8. Bf1 {[%emt 0:00:06]} Nc6 {[%emt 0:00:05]} 9. Nbd2 {[%emt 0:00:53]} e5 {[%emt 0:04:50]} 10. a3 {[%emt 0:00:27]} a5 {[%emt 0:08:38]} 11. a4 {[%emt 0:00:16]} h6 {[%emt 0:03:17]} 12. Nc4 {[%emt 0:05:28]} Be6 {[%emt 0:00:28]} 13. h3 {[%emt 0:00:29]} Qc7 {[%emt 0:05:31]} 14. Qb3 {[%emt 0:19:23]} d5 {[%emt 0:02:38]} 15. Qb6 {[%emt 0:01:44]} Qxb6 {[%emt 0:02:27]} 16. Nxb6 {[%emt 0:00:09]} Rad8 {[%emt 0:00:21]} 17. exd5 {[%emt 0:00:18]} Nxd5 {[%emt 0:01:40]} 18. Nc4 {[%emt 0:00:07]} f6 {[%emt 0:11:47]} 19. Ra3 {[%emt 0:01:38]} Rfe8 {[%emt 0:17:54]} 20. Rb3 {[%emt 0:01:57]} Rb8 {[%emt 0:00:48]} 21. g3 {[%emt 0:12:36]} Nc7 {[%emt 0:03:58]} 22. Rb6 {[%emt 0:04:13]} Bf8 {[%emt 0:03:30]} 23. Bg2 {[%emt 0:04:25]} Red8 {[%emt 0:07:56]} 24. Nh4 {[%emt 0:04:37]} g5 {[%emt 0:01:30]} 25. Ng6 {[%emt 0:00:33]} Bd5 {[%emt 0:01:00]} 26. Nxf8 {[%emt 0:03:09]} Kxf8 {[%emt 0:00:16]} 27. Be4 {[%emt 0:01:06]} Bxe4 {[%emt 0:03:51]} 28. dxe4 {[%emt 0:00:07]} Na8 {[%emt 0:03:38]} 29. Rb5 {[%emt 0:00:17]} b6 {[%emt 0:00:06]} 30. Be3 {[%emt 0:01:32]} Kf7 {[%emt 0:00:11]} 31. Kf1 {[%emt 0:01:03]} Ke6 {[%emt 0:02:41]} 32. Ke2 {[%emt 0:01:10]} Rd7 {[%emt 0:01:05]} 33. h4 {[%emt 0:01:02]} Na7 {[%emt 0:03:50]} 34. Rb3 {[%emt 0:00:09]} Rbb7 {[%emt 0:00:05]} 35. Rh1 {[%emt 0:02:14]} Rh7 {[%emt 0:02:03]} 36. Kd3 {[%emt 0:04:26]} Nc8 {[%emt 0:01:12]} 37. hxg5 {[%emt 0:00:08]} hxg5 {[%emt 0:02:07]} 38. Rxh7 {[%emt 0:00:09]} Rxh7 {[%emt 0:00:04]} 39. Bxc5 {[%emt 0:00:52]} Rc7 {[%emt 0:02:27]} 40. Be3 {[%emt 0:00:23]} Rc6 {[%emt 0:00:05]} 41. f3 {[%emt 0:32:39]} Ke7 {[%emt 0:30:26]} 42. Bf2 {[%emt 0:00:54]} Ke6 {[%emt 0:00:19]} 43. g4 {[%emt 0:00:10]} Rc7 {[%emt 0:02:22]} 44. Ne3 {[%emt 0:02:07]} Ne7 {[%emt 0:03:09]} 45. c4 {[%emt 0:00:17]} Nc6 {[%emt 0:00:00]} 46. Nd5 {[%emt 0:00:00]} Rh7 {[%emt 0:00:00]} 47. Nxb6 {[%emt 0:00:00]} 1-0

[Event "48th Rilton Cup 2018"]
[Site "Stockholm"]
[Date "2019.01.02"]
[Round "6"]
[White "D`Costa, Lorin A R"]
[Black "Hillarp Persson, Tiger"]
[Result "0-1"]
[ECO "A48"]
[WhiteElo "2390"]
[BlackElo "2546"]
[Annotator "ChessBase"]
[PlyCount "76"]
[EventDate "2018.12.27"]
[EventType "swiss"]
[EventCountry "SWE"]
[SourceTitle "playchess.com"]
[Source "ChessBase"]
[SourceQuality "1"]
[TimeControl "40/5400+30:1800+30"]

1. d4 {[%emt 0:00:00]} Nf6 {[%emt 0:00:30]} 2. Nf3 {[%emt 0:00:00]} g6 {[%emt 0:00:18]} 3. Bf4 {[%emt 0:00:50]} Nh5 {[%emt 0:02:05]} 4. Be5 {[%emt 0:11:01]} f6 {[%emt 0:00:11]} 5. Bg3 {[%emt 0:00:09]} d6 {[%emt 0:19:51]} 6. e3 {[%emt 0:04:35]} e5 {[%emt 0:11:36]} 7. Be2 {[%emt 0:18:01]} Nxg3 {[%emt 0:07:09]} 8. hxg3 {[%emt 0:00:37]} Bg7 {[%emt 0:24:10]} 9. Nc3 {[%emt 0:14:14]} Nd7 {[%emt 0:03:46]} 10. e4 {[%emt 0:12:43]} c6 {[%emt 0:02:06]} 11. Qd2 {[%emt 0:02:03]} Nb6 {[%emt 0:03:47]} 12. a4 {[%emt 0:11:46]} a5 {[%emt 0:03:20]} 13. Rd1 {[%emt 0:04:29]} Be6 {[%emt 0:02:13]} 14. d5 {[%emt 0:04:11]} cxd5 {[%emt 0:00:48]} 15. Bb5+ {[%emt 0:00:23]} Kf8 {[%emt 0:00:51]} 16. Nxd5 {[%emt 0:01:12]} Nxd5 {[%emt 0:03:36]} 17. exd5 {[%emt 0:00:08]} Bg4 {[%emt 0:04:11]} 18. Qe3 {[%emt 0:06:36]} Kf7 {[%emt 0:01:25]} 19. Rd2 {[%emt 0:01:55]} h5 {[%emt 0:00:08]} 20. Nh2 {[%emt 0:00:56]} Bd7 {[%emt 0:00:34]} 21. Qe2 {[%emt 0:02:13]} e4 {[%emt 0:00:38]} 22. Nf1 {[%emt 0:00:41]} f5 {[%emt 0:01:38]} 23. c3 {[%emt 0:00:35]} Bxb5 {[%emt 0:01:23]} 24. Qxb5 {[%emt 0:00:07]} Qe7 {[%emt 0:00:18]} 25. Ne3 {[%emt 0:00:44]} Bh6 {[%emt 0:00:19]} 26. Re2 {[%emt 0:00:27]} Bxe3 {[%emt 0:01:17]} 27. Rxe3 {[%emt 0:00:22]} Rhc8 {[%emt 0:01:14]} 28. Qe2 {[%emt 0:01:16]} Qg5 {[%emt 0:00:56]} 29. Qb5 {[%emt 0:00:54]} Qe7 {[%emt 0:00:36]} 30. Qe2 {[%emt 0:00:48]} Rc5 {[%emt 0:01:07]} 31. c4 {[%emt 0:00:51]} Rac8 {[%emt 0:01:56]} 32. b3 {[%emt 0:00:27]} Rxd5 {[%emt 0:00:55]} 33. Rxh5 {[%emt 0:00:37]} Qf6 {[%emt 0:00:28]} 34. Rh7+ {[%emt 0:00:33]} Kg8 {[%emt 0:00:12]} 35. Qa2 {[%emt 0:00:28]} Kxh7 {[%emt 0:00:30]} 36. cxd5 {[%emt 0:00:12]} Rc1+ {[%emt 0:00:44]} 37. Ke2 {[%emt 0:00:49]} Qd4 {[%emt 0:00:36]} 38. Qd2 {[%emt 0:00:28]} Qc5 {[%emt 0:00:11]} 0-1

[Event "48th Rilton Cup 2018"]
[Site "Stockholm"]
[Date "2019.01.02"]
[Round "6"]
[White "Pranav Anand"]
[Black "Liang, Awonder"]
[Result "0-1"]
[ECO "C72"]
[WhiteElo "2274"]
[BlackElo "2589"]
[Annotator "RC"]
[PlyCount "100"]
[EventDate "2018.12.27"]
[EventType "swiss"]
[EventCountry "SWE"]
[SourceTitle "playchess.com"]
[Source "ChessBase"]
[SourceQuality "1"]
[TimeControl "40/5400+30:1800+30"]

1. e4 {[%emt 0:00:00]} e5 {[%emt 0:00:00]} 2. Nf3 {[%emt 0:00:00]} Nc6 {[%emt 0:00:00]} 3. Bb5 {[%emt 0:00:00]} a6 {[%emt 0:00:00]} 4. Ba4 {[%emt 0:00:00]} d6 {[%emt 0:00:00]} 5. O-O {[%emt 0:03:18]} Bd7 {[%emt 0:00:02]} 6. c3 {[%emt 0:00:54]} g6 {[%emt 0:00:09]} 7. d4 {[%emt 0:00:37]} Bg7 {[%emt 0:00:07]} 8. d5 {[%emt 0:02:20]} Nce7 {[%emt 0:00:08]} 9. Bxd7+ {[%emt 0:00:07]} Qxd7 {[%emt 0:00:07]} 10. c4 {[%emt 0:00:20]} h6 {[%emt 0:00:22]} 11. Nc3 {[%emt 0:00:40]} f5 {[%emt 0:00:38]} 12. Ne1 {[%emt 0:00:14]} Nf6 {[%emt 0:00:46]} 13. f3 {[%emt 0:00:19]} O-O {[%emt 0:07:24]} 14. Nd3 {[%emt 0:00:49]} c6 {[%emt 0:01:03]} 15. Be3 {[%emt 0:05:51]} Kh7 {[%emt 0:04:01]} 16. Rc1 {[%emt 0:06:20]} b5 {[%emt 0:13:53]} 17. dxc6 {[%emt 0:05:54]} Nxc6 {[%emt 0:01:25]} 18. Nd5 {[%emt 0:06:21]} bxc4 {[%emt 0:06:46]} 19. Nc5 {[%emt 0:18:00]} Qe8 {[%emt 0:28:42]} 20. Nc7 {[%emt 0:03:55]} Qe7 {[%emt 0:00:01]} 21. Nxa8 {[%emt 0:07:36]} Rxa8 {[%emt 0:00:59]} 22. Na4 {[%emt 0:00:06]} fxe4 {[%emt 0:05:02]} 23. fxe4 {[%emt 0:01:47]} Nd4 {[%emt 0:00:18]} 24. Rxc4 {[%emt 0:12:02]} Nxe4 {[%emt 0:00:36]} 25. Bxd4 {[%emt 0:00:29]} exd4 {[%emt 0:00:17]} 26. Qd3 {[%emt 0:00:48]} d5 {[%emt 0:05:42]} 27. Rc2 {[%emt 0:01:20]} Re8 {[%emt 0:00:45]} 28. b3 {[%emt 0:04:01]} Qd6 {[%emt 0:01:29]} 29. Re2 {[%emt 0:06:44]} Re7 {[%emt 0:00:46]} 30. Rfe1 {[%emt 0:01:45]} Rc7 {[%emt 0:01:43]} 31. Rc2 {[%emt 0:02:29]} Rxc2 {[%emt 0:09:07]} 32. Qxc2 {[%emt 0:00:07]} Be5 {[%emt 0:00:06]} 33. g3 {[%emt 0:02:12]} Bxg3 {[%emt 0:02:10]} 34. hxg3 {[%emt 0:00:56]} Qxg3+ {[%emt 0:00:26]} 35. Kf1 {[%emt 0:00:01]} d3 36. Qg2 {[%emt 0:01:26]} d2 {[%emt 0:00:45]} 37. Qxg3 {[%emt 0:06:26]} Nxg3+ {[%emt 0:00:05]} 38. Kf2 {[%emt 0:00:04]} Ne4+ {[%emt 0:00:03]} 39. Ke2 {[%emt 0:00:35]} dxe1=Q+ {[%emt 0:00:10]} 40. Kxe1 {[%emt 0:00:03]} h5 {[%emt 0:00:32]} 41. Ke2 {[%emt 0:30:53]} h4 {[%emt 0:30:23]} 42. Kf1 {[%emt 0:00:40]} h3 {[%emt 0:00:59]} 43. Kg1 {[%emt 0:01:25]} g5 {[%emt 0:00:05]} 44. Kh2 {[%emt 0:00:05]} g4 {[%emt 0:00:03]} 45. b4 {[%emt 0:00:23]} Nd2 {[%emt 0:01:22]} 46. Nc3 {[%emt 0:01:02]} d4 {[%emt 0:00:13]} 47. Nd1 {[%emt 0:00:20]} Nf1+ {[%emt 0:00:19]} 48. Kg1 {[%emt 0:00:06]} h2+ {[%emt 0:00:12]} 49. Kh1 {[%emt 0:00:11]} g3 {[%emt 0:00:05]} 50. a4 {[%emt 0:00:11]} Ne3 {[%emt 0:00:09]} 0-1

[Event "48th Rilton Cup 2018"]
[Site "Stockholm"]
[Date "2019.01.03"]
[Round "7"]
[White "Volkov, Sergey"]
[Black "Schekachikhin, Maksim"]
[Result "1-0"]
[ECO "D12"]
[WhiteElo "2583"]
[BlackElo "2368"]
[Annotator "ChessBase"]
[PlyCount "61"]
[EventDate "2018.12.27"]
[EventType "swiss"]
[EventCountry "SWE"]
[SourceTitle "playchess.com"]
[Source "ChessBase"]
[SourceQuality "1"]
[TimeControl "40/5400+30:1800+30"]

1. d4 {[%emt 0:00:00]} d5 {[%emt 0:00:00]} 2. c4 {[%emt 0:00:00]} c6 {[%emt 0:00:00]} 3. Nf3 {[%emt 0:00:00]} Nf6 {[%emt 0:00:11]} 4. e3 {[%emt 0:00:02]} Bf5 {[%emt 0:00:34]} 5. Nc3 {[%emt 0:00:12]} e6 {[%emt 0:00:09]} 6. Nh4 {[%emt 0:00:12]} Be4 {[%emt 0:00:09]} 7. f3 {[%emt 0:00:14]} Bg6 {[%emt 0:00:09]} 8. Qb3 {[%emt 0:00:24]} Qc7 {[%emt 0:00:24]} 9. Bd2 {[%emt 0:00:17]} Be7 {[%emt 0:00:28]} 10. g3 {[%emt 0:00:22]} Bh5 {[%emt 0:01:13]} 11. O-O-O {[%emt 0:00:11]} a5 {[%emt 0:04:35]} 12. g4 {[%emt 0:00:16]} a4 {[%emt 0:07:10]} 13. Qc2 {[%emt 0:03:00]} Nxg4 {[%emt 0:01:52]} 14. fxg4 {[%emt 0:00:09]} Bxg4 {[%emt 0:00:03]} 15. Be1 {[%emt 0:00:11]} Qd8 {[%emt 0:01:55]} 16. Qf2 {[%emt 0:00:05]} Bxd1 {[%emt 0:04:20]} 17. Kxd1 {[%emt 0:00:12]} dxc4 {[%emt 0:11:38]} 18. Bxc4 {[%emt 0:01:06]} Nd7 {[%emt 0:01:48]} 19. Rg1 {[%emt 0:02:43]} Ne5 {[%emt 0:10:56]} 20. Be2 {[%emt 0:05:50]} Ng6 {[%emt 0:01:39]} 21. Nf3 {[%emt 0:09:21]} b5 {[%emt 0:05:17]} 22. h4 {[%emt 0:15:30]} b4 {[%emt 0:06:20]} 23. h5 {[%emt 0:03:07]} bxc3 {[%emt 0:08:15]} 24. hxg6 {[%emt 0:00:17]} fxg6 {[%emt 0:13:20]} 25. Bxc3 {[%emt 0:06:06]} O-O {[%emt 0:04:23]} 26. Bc4 {[%emt 0:02:41]} Kh8 {[%emt 0:03:50]} 27. Qg2 {[%emt 0:06:18]} Bf6 {[%emt 0:03:29]} 28. Rh1 {[%emt 0:05:38]} Qe8 {[%emt 0:01:58]} 29. Bb4 {[%emt 0:02:49]} c5 {[%emt 0:03:43]} 30. Bxc5 {[%emt 0:00:17]} Qc6 {[%emt 0:00:46]} 31. Ng5 {[%emt 0:04:15]} 1-0

[Event "48th Rilton Cup 2018"]
[Site "Stockholm"]
[Date "2019.01.03"]
[Round "7"]
[White "Kulaots, Kaido"]
[Black "Murzin, Volodar"]
[Result "1/2-1/2"]
[ECO "B13"]
[WhiteElo "2555"]
[BlackElo "2336"]
[Annotator "ChessBase"]
[PlyCount "111"]
[EventDate "2018.12.27"]
[EventType "swiss"]
[EventCountry "SWE"]
[SourceTitle "playchess.com"]
[Source "ChessBase"]
[SourceQuality "1"]
[TimeControl "40/5400+30:1800+30"]

1. e4 {[%emt 0:01:39]} c6 {[%emt 0:00:00]} 2. d4 {[%emt 0:02:39]} d5 {[%emt 0:00:00]} 3. exd5 {[%emt 0:00:36]} cxd5 {[%emt 0:00:00]} 4. Bd3 {[%emt 0:00:13]} Nc6 {[%emt 0:00:00]} 5. c3 {[%emt 0:00:06]} g6 {[%emt 0:00:21]} 6. Nf3 {[%emt 0:04:30]} Bg7 {[%emt 0:00:30]} 7. O-O {[%emt 0:01:07]} Bf5 {[%emt 0:02:25]} 8. Bxf5 {[%emt 0:04:14]} gxf5 {[%emt 0:00:03]} 9. Re1 {[%emt 0:00:25]} e6 {[%emt 0:03:04]} 10. Bg5 {[%emt 0:05:18]} Nge7 {[%emt 0:04:00]} 11. Nbd2 {[%emt 0:02:46]} Qc7 {[%emt 0:04:00]} 12. Nb3 {[%emt 0:02:57]} Ng6 {[%emt 0:01:59]} 13. Nc5 {[%emt 0:02:39]} O-O {[%emt 0:01:51]} 14. Qd2 {[%emt 0:18:37]} b6 {[%emt 0:02:01]} 15. Nd3 {[%emt 0:00:46]} f6 {[%emt 0:02:44]} 16. Bf4 {[%emt 0:11:51]} Qf7 {[%emt 0:01:47]} 17. Re2 {[%emt 0:02:14]} Rfe8 {[%emt 0:03:21]} 18. Rae1 {[%emt 0:00:28]} Rad8 {[%emt 0:04:18]} 19. Bg3 {[%emt 0:02:06]} Na5 {[%emt 0:07:51]} 20. b3 {[%emt 0:01:11]} Nb7 {[%emt 0:04:31]} 21. Nh4 {[%emt 0:04:39]} Re7 {[%emt 0:10:15]} 22. f3 {[%emt 0:04:23]} Rde8 {[%emt 0:04:04]} 23. Nb4 {[%emt 0:02:14]} Nd8 {[%emt 0:01:26]} 24. c4 {[%emt 0:03:34]} Nxh4 {[%emt 0:03:58]} 25. Bxh4 {[%emt 0:00:07]} dxc4 {[%emt 0:00:07]} 26. bxc4 {[%emt 0:00:29]} Rd7 {[%emt 0:02:31]} 27. Qb2 {[%emt 0:04:32]} Nb7 {[%emt 0:03:29]} 28. Nc6 {[%emt 0:04:45]} Nd8 {[%emt 0:10:56]} 29. d5 {[%emt 0:02:14]} Nxc6 {[%emt 0:02:36]} 30. dxe6 {[%emt 0:06:51]} Rxe6 {[%emt 0:00:07]} 31. Rxe6 {[%emt 0:00:05]} Ne5 {[%emt 0:00:03]} 32. R6xe5 {[%emt 0:04:34]} fxe5 {[%emt 0:00:07]} 33. Qb5 {[%emt 0:00:33]} h6 {[%emt 0:03:49]} 34. Bg3 {[%emt 0:00:28]} e4 {[%emt 0:01:09]} 35. fxe4 {[%emt 0:01:04]} fxe4 {[%emt 0:00:01]} 36. h3 {[%emt 0:00:30]} Rd3 {[%emt 0:02:51]} 37. Kh2 {[%emt 0:00:30]} Qg6 {[%emt 0:00:49]} 38. Bf4 {[%emt 0:00:13]} Rd4 {[%emt 0:02:13]} 39. Re3 {[%emt 0:00:36]} Qf7 {[%emt 0:01:02]} 40. Bb8 {[%emt 0:00:43]} Rxc4 {[%emt 0:06:19]} 41. Rg3 {[%emt 0:13:12]} Rc5 {[%emt 0:12:57]} 42. Qa4 {[%emt 0:03:49]} Rg5 {[%emt 0:01:01]} 43. Qxe4 {[%emt 0:05:13]} Rxg3 {[%emt 0:00:42]} 44. Kxg3 {[%emt 0:00:57]} Qxa2 {[%emt 0:00:43]} 45. Qe8+ {[%emt 0:00:34]} Kh7 {[%emt 0:00:07]} 46. Qe4+ {[%emt 0:00:27]} Kh8 {[%emt 0:01:09]} 47. Qe8+ {[%emt 0:00:27]} Kh7 {[%emt 0:00:47]} 48. Qe4+ {[%emt 0:00:28]} Kh8 {[%emt 0:00:37]} 49. Qe8+ {[%emt 0:00:16]} Qg8 {[%emt 0:02:21]} 50. Qxg8+ {[%emt 0:00:07]} Kxg8 {[%emt 0:00:05]} 51. Bxa7 {[%emt 0:00:05]} b5 {[%emt 0:00:03]} 52. Bc5 {[%emt 0:00:13]} Bf8 {[%emt 0:01:23]} 53. Bxf8 {[%emt 0:00:49]} Kxf8 {[%emt 0:00:01]} 54. Kf4 {[%emt 0:00:10]} Kf7 {[%emt 0:00:13]} 55. g4 {[%emt 0:00:18]} h5 {[%emt 0:01:24]} 56. gxh5 {[%emt 0:00:32]} 1/2-1/2

[Event "48th Rilton Cup 2018"]
[Site "Stockholm"]
[Date "2019.01.03"]
[Round "7"]
[White "Heberla, Bartlomiej"]
[Black "Valsecchi, Alessio"]
[Result "0-1"]
[ECO "A34"]
[WhiteElo "2550"]
[BlackElo "2497"]
[Annotator "RC"]
[PlyCount "139"]
[EventDate "2018.12.27"]
[EventType "swiss"]
[EventCountry "SWE"]
[SourceTitle "playchess.com"]
[Source "ChessBase"]
[SourceQuality "1"]
[TimeControl "40/5400+30:1800+30"]

1. c4 {[%emt 0:09:01]} c5 {[%emt 0:00:00]} 2. Nf3 {[%emt 0:00:39]} Nf6 {[%emt 0:00:00]} 3. Nc3 {[%emt 0:00:18]} d5 {[%emt 0:00:08]} 4. cxd5 {[%emt 0:01:30]} Nxd5 {[%emt 0:00:06]} 5. e3 {[%emt 0:10:13]} Nc6 {[%emt 0:01:37]} 6. Bb5 {[%emt 0:05:02]} Nxc3 {[%emt 0:01:02]} 7. bxc3 {[%emt 0:00:14]} Qc7 {[%emt 0:00:29]} 8. O-O {[%emt 0:04:00]} a6 {[%emt 0:01:10]} 9. Be2 {[%emt 0:00:37]} e6 {[%emt 0:04:21]} 10. d4 {[%emt 0:00:42]} Be7 {[%emt 0:01:10]} 11. e4 {[%emt 0:08:51]} O-O {[%emt 0:00:53]} 12. Be3 {[%emt 0:00:12]} Rd8 {[%emt 0:08:56]} 13. Qc1 {[%emt 0:18:25]} b5 {[%emt 0:03:33]} 14. a4 {[%emt 0:03:47]} Na5 {[%emt 0:05:00]} 15. Bf4 {[%emt 0:17:35]} Qb6 {[%emt 0:04:04]} 16. Rb1 {[%emt 0:00:33]} Bb7 {[%emt 0:02:44]} 17. Qe3 {[%emt 0:02:41]} cxd4 {[%emt 0:03:43]} 18. Nxd4 {[%emt 0:03:43]} Qc5 {[%emt 0:04:39]} 19. Nb3 {[%emt 0:05:34]} Qxe3 {[%emt 0:09:35]} 20. Bxe3 {[%emt 0:00:02]} Nc4 {[%emt 0:01:09]} 21. Bxc4 {[%emt 0:02:08]} bxc4 {[%emt 0:00:03]} 22. Nd2 {[%emt 0:00:24]} Bc6 {[%emt 0:00:06]} 23. a5 {[%emt 0:00:59]} Bb5 24. Nf3 {[%emt 0:00:01]} Bc6 {[%emt 0:11:17]} 25. e5 {[%emt 0:00:28]} Be4 {[%emt 0:04:13]} 26. Rb6 {[%emt 0:01:36]} Rd5 {[%emt 0:00:36]} 27. Ra1 {[%emt 0:02:49]} Bd8 {[%emt 0:01:54]} 28. Rd6 {[%emt 0:01:20]} Rxa5 {[%emt 0:00:49]} 29. Rad1 {[%emt 0:00:01]} Rd5 {[%emt 0:01:55]} 30. Ra1 {[%emt 0:00:35]} a5 {[%emt 0:01:08]} 31. Nd4 {[%emt 0:00:29]} Be7 {[%emt 0:03:06]} 32. Rb6 {[%emt 0:00:54]} a4 {[%emt 0:01:06]} 33. f3 {[%emt 0:00:23]} Bd3 {[%emt 0:01:01]} 34. Nc6 {[%emt 0:00:02]} Bf8 {[%emt 0:01:05]} 35. Bd4 {[%emt 0:00:34]} h6 {[%emt 0:04:10]} 36. Nb4 {[%emt 0:00:13]} Bxb4 {[%emt 0:01:43]} 37. Rxb4 {[%emt 0:00:02]} a3 {[%emt 0:00:09]} 38. Ra2 {[%emt 0:00:51]} Bc2 {[%emt 0:05:30]} 39. Kf2 {[%emt 0:00:25]} Bb3 40. Ra1 f6 {[%emt 0:09:53]} 41. f4 {[%emt 0:02:00]} fxe5 {[%emt 0:01:38]} 42. fxe5 {[%emt 0:00:02]} a2 {[%emt 0:04:17]} 43. Rb6 {[%emt 0:08:32]} Bc2 {[%emt 0:03:52]} 44. Ke3 {[%emt 0:00:40]} Rda5 {[%emt 0:02:41]} 45. Rb4 {[%emt 0:08:05]} Bd3 {[%emt 0:01:14]} 46. g3 {[%emt 0:03:41]} Ra3 {[%emt 0:02:48]} 47. Rb2 {[%emt 0:00:07]} Kh7 {[%emt 0:01:35]} 48. Bc5 {[%emt 0:04:44]} R3a5 {[%emt 0:09:09]} 49. Bd4 {[%emt 0:00:01]} Kg6 {[%emt 0:02:22]} 50. Rf2 {[%emt 0:00:02]} Ra3 {[%emt 0:01:16]} 51. Rb2 {[%emt 0:00:32]} R8a5 {[%emt 0:00:43]} 52. Rf2 {[%emt 0:00:33]} Bb1 {[%emt 0:00:31]} 53. Rb2 {[%emt 0:00:34]} Rb3 {[%emt 0:00:26]} 54. Rf2 {[%emt 0:00:04]} Raa3 {[%emt 0:02:29]} 55. Kf4 {[%emt 0:02:36]} Rb5 {[%emt 0:02:00]} 56. Ke3 {[%emt 0:00:19]} Rb7 {[%emt 0:00:31]} 57. Rd2 {[%emt 0:03:00]} h5 {[%emt 0:01:34]} 58. Rg2 {[%emt 0:00:41]} Ra8 {[%emt 0:01:29]} 59. Rd2 {[%emt 0:01:22]} Rf7 {[%emt 0:00:11]} 60. Rd1 {[%emt 0:00:31]} Rb8 {[%emt 0:02:21]} 61. Rd2 {[%emt 0:00:33]} Rbf8 {[%emt 0:00:56]} 62. Rdxa2 {[%emt 0:00:33]} Rf3+ {[%emt 0:01:23]} 63. Ke2 {[%emt 0:00:02]} Bxa2 {[%emt 0:00:49]} 64. Rxa2 {[%emt 0:00:01]} h4 {[%emt 0:00:14]} 65. Ra6 {[%emt 0:01:13]} hxg3 {[%emt 0:00:08]} 66. hxg3 {[%emt 0:00:17]} Rxg3 {[%emt 0:00:16]} 67. Rxe6+ {[%emt 0:00:02]} Kf5 {[%emt 0:00:11]} 68. Ra6 {[%emt 0:04:45]} Ke4 {[%emt 0:00:12]} 69. e6 {[%emt 0:00:06]} Rg2+ {[%emt 0:00:11]} 70. Ke1 {[%emt 0:00:03] Ke5} 0-1